bitfinex/quotes_BTCUSD_20241103
["timestamp","ask_amount","ask_price","bid_price","bid_amount"]
[1730653191465,0.01192594,68188.0,68187.0,0.005]
[1730653193046,0.01392594,68188.0,68187.0,0.005]
[1730653193753,0.01692594,68188.0,68187.0,0.005]
[1730653195096,0.005,68188.0,68187.0,0.005]
[1730653195317,0.01233948,68188.0,68186.0,0.005]
[1730653195534,0.005,68188.0,68187.0,0.005]
[1730653195999,0.01692665,68188.0,68185.0,0.156659]
[1730653196224,0.005,68188.0,68187.0,0.005]
[1730653196441,0.00958717,68188.0,68187.0,0.005]
[1730653196670,0.00658717,68188.0,68187.0,0.005]
[1730653197552,0.00458717,68188.0,68187.0,0.005]
[1730653197774,0.00858717,68188.0,68187.0,0.005]
[1730653198767,0.00758717,68188.0,68187.0,0.005]
[1730653199172,0.00958717,68188.0,68187.0,0.005]
[1730653199649,0.00958717,68188.0,68186.0,0.005]
[1730653199892,0.00958717,68188.0,68187.0,0.005]
[1730653199893,0.005,68188.0,68187.0,0.005]
[1730653200136,0.00958717,68188.0,68187.0,0.005]
[1730653200344,0.00958717,68188.0,68185.0,0.00935]
[1730653200550,0.146659,68185.0,68184.0,0.0093558]
[1730653200769,0.29704321,68185.0,68184.0,0.0093558]
[1730653201317,0.15038421,68185.0,68184.0,0.0093558]
[1730653201516,0.29704321,68185.0,68184.0,0.0093558]
[1730653203829,0.29704321,68185.0,68184.0,0.0103558]
[1730653204060,0.37774321,68185.0,68184.0,0.0093558]
[1730653204509,0.52456895,68185.0,68184.0,0.0093558]
[1730653204789,0.54756895,68185.0,68184.0,0.0093558]
[1730653205213,0.59108518,68185.0,68184.0,0.0093558]
[1730653205433,0.59496895,68185.0,68184.0,0.0093558]
[1730653205659,0.63848518,68185.0,68184.0,0.0093558]
[1730653206359,0.15038421,68185.0,68184.0,0.0093558]
[1730653206817,0.15838421,68185.0,68184.0,0.0093558]
[1730653207043,0.00458717,68185.0,68184.0,0.23195468]
[1730653207285,0.00458717,68185.0,68184.0,0.23695468]
[1730653207499,0.01858717,68185.0,68184.0,0.0143558]
[1730653207726,0.01358717,68185.0,68184.0,0.0143558]
[1730653207949,0.01358717,68185.0,68184.0,0.0093558]
[1730653208186,0.00458717,68185.0,68184.0,0.0093558]
[1730653208426,0.30204321,68185.0,68184.0,0.0093558]
[1730653208659,0.34944321,68185.0,68184.0,0.0093558]
[1730653208879,0.37978384,68185.0,68184.0,0.0093558]
[1730653209095,0.37478384,68185.0,68184.0,0.0093558]
[1730653209547,0.38878384,68185.0,68184.0,0.0093558]
[1730653209802,0.54695007,68185.0,68184.0,0.0093558]
[1730653210032,0.53295007,68185.0,68184.0,0.0093558]
[1730653210285,0.67877581,68185.0,68184.0,0.0093558]
[1730653210497,0.69277581,68185.0,68184.0,0.0093558]
[1730653210703,0.67877581,68185.0,68184.0,0.0093558]
[1730653211175,0.69277581,68185.0,68184.0,0.0093558]
[1730653211397,0.69279701,68185.0,68184.0,0.0093558]
[1730653213467,0.6492611,68185.0,68184.0,0.0093558]
[1730653214659,0.49609424,68185.0,68184.0,0.0093558]
[1730653214890,0.50343534,68185.0,68184.0,0.0093558]
[1730653215642,0.32504423,68185.0,68184.0,0.0093558]
[1730653215861,0.32504423,68185.0,68184.0,0.1610168]
[1730653215862,0.03258819,68185.0,68184.0,0.1610168]
[1730653216866,0.03258819,68185.0,68184.0,0.0093558]
[1730653217116,0.03258819,68185.0,68184.0,0.0187058]
[1730653217335,0.03258819,68185.0,68184.0,0.2955668]
[1730653218250,0.01858724,68185.0,68184.0,0.41619553]
[1730653218483,0.014,68185.0,68184.0,0.41619553]
[1730653218762,0.015,68185.0,68184.0,0.41719553]
[1730653218987,0.001,68185.0,68184.0,0.41719553]
[1730653219233,0.00458724,68187.0,68186.0,0.148657]
[1730653219448,0.001636,68188.0,68187.0,0.148655]
[1730653219687,0.001636,68188.0,68187.0,0.153005]
[1730653220129,0.001636,68188.0,68187.0,0.233105]
[1730653221250,0.002636,68188.0,68187.0,0.236105]
[1730653222361,0.002636,68188.0,68187.0,0.23903782]
[1730653222816,0.003636,68188.0,68187.0,0.24103782]
[1730653223277,0.003636,68188.0,68187.0,0.67777209]
[1730653223529,0.003636,68188.0,68187.0,0.44130204]
[1730653223979,0.002636,68188.0,68187.0,0.53930204]
[1730653224203,0.001636,68188.0,68187.0,0.53630204]
[1730653224456,0.003636,68188.0,68187.0,0.54030204]
[1730653224679,0.001636,68197.0,68196.0,0.162986]
[1730653224945,0.001636,68197.0,68196.0,0.55191177]
[1730653225312,0.001636,68197.0,68196.0,0.55691177]
[1730653226781,0.003636,68197.0,68196.0,0.57591177]
[1730653227965,0.003636,68197.0,68196.0,0.67591177]
[1730653230944,0.003636,68197.0,68196.0,1.37591177]
[1730653235362,0.003636,68197.0,68196.0,1.38177977]
[1730653235564,0.003636,68197.0,68196.0,0.68177977]
[1730653235802,0.003636,68197.0,68196.0,0.68377977]
[1730653236020,0.003636,68197.0,68196.0,0.69582759]
[1730653236247,0.003636,68197.0,68196.0,0.68177977]
[1730653236739,0.001636,68225.0,68207.0,0.391762]
[1730653236958,0.22003975,68213.0,68207.0,0.53755904]
[1730653237177,0.22003975,68213.0,68207.0,0.54960686]
[1730653237401,0.22003975,68221.0,68207.0,0.56690904]
[1730653237848,0.22003975,68221.0,68207.0,1.26690904]
[1730653238098,0.22003975,68221.0,68207.0,1.23755904]
[1730653238360,0.002636,68208.0,68207.0,1.24755904]
[1730653239501,0.001636,68208.0,68207.0,1.23755904]
[1730653239740,0.002636,68208.0,68207.0,0.55155904]
[1730653240182,0.001636,68208.0,68207.0,0.55155904]
[1730653240683,0.001636,68208.0,68207.0,0.53755904]
[1730653240939,0.002636,68208.0,68207.0,0.55055904]
[1730653241388,0.002636,68208.0,68207.0,0.56455904]
[1730653241887,0.001636,68225.0,68218.0,0.160938]
[1730653242097,1e-06,68219.0,68218.0,0.78372321]
[1730653242317,0.001636,68225.0,68224.0,0.391725]
[1730653242537,0.001636,68225.0,68224.0,0.7787795]
[1730653243017,0.001636,68225.0,68224.0,1.4787795]
[1730653243758,0.001636,68228.0,68227.0,0.165919]
[1730653243982,0.001636,68228.0,68227.0,1.11371604]
[1730653245308,0.001636,68228.0,68227.0,1.19031604]
[1730653245754,0.001636,68228.0,68227.0,1.20431604]
[1730653246237,0.001636,68228.0,68227.0,1.20231604]
[1730653246457,0.001636,68228.0,68227.0,1.19031604]
[1730653246694,0.001636,68228.0,68227.0,1.20431604]
[1730653246916,0.001636,68228.0,68227.0,1.21831604]
[1730653247147,0.001636,68228.0,68227.0,1.20431604]
[1730653247403,0.001636,68228.0,68227.0,1.20231604]
[1730653247622,0.001636,68228.0,68227.0,1.21831604]
[1730653248563,0.001636,68228.0,68227.0,1.21631604]
[1730653248780,0.00458328,68250.0,68238.0,0.40932373]
[1730653248998,0.00540075,68253.0,68238.0,0.65312077]
[1730653249215,0.00540075,68253.0,68238.0,0.65512077]
[1730653249435,0.000818,68253.0,68238.0,0.65512077]
[1730653250595,0.001818,68239.0,68238.0,0.65512077]
[1730653251060,0.001818,68239.0,68238.0,0.66912077]
[1730653252633,0.001818,68239.0,68238.0,0.63762077]
[1730653253515,0.001818,68239.0,68238.0,1.32362077]
[1730653253749,0.001818,68239.0,68238.0,1.16382373]
[1730653253979,0.001818,68239.0,68238.0,1.10252373]
[1730653254193,0.001818,68239.0,68238.0,1.10652373]
[1730653254403,0.001818,68239.0,68238.0,1.11652373]
[1730653254625,0.001818,68239.0,68238.0,1.11152373]
[1730653255274,0.001818,68239.0,68238.0,1.08852373]
[1730653255720,0.001818,68239.0,68238.0,1.09952373]
[1730653256043,0.001818,68239.0,68238.0,0.39952373]
[1730653256140,0.001818,68239.0,68238.0,0.77359916]
[1730653256401,0.001818,68239.0,68238.0,0.55355941]
[1730653256621,0.001818,68239.0,68238.0,0.62885941]
[1730653257940,0.001818,68239.0,68238.0,1.32885941]
[1730653259080,0.001818,68239.0,68238.0,1.32062077]
[1730653263597,0.00640067,68239.0,68238.0,1.32062077]
[1730653264041,0.00640067,68239.0,68238.0,1.24532077]
[1730653265351,0.00640079,68239.0,68238.0,1.24532077]
[1730653266275,0.00640079,68239.0,68238.0,0.54532077]
[1730653269390,0.00640079,68239.0,68238.0,1.24532077]
[1730653270635,0.0137331,68239.0,68238.0,1.24532077]
[1730653272513,0.01373307,68239.0,68238.0,1.24532077]
[1730653272765,0.001818,68239.0,68238.0,1.24532077]
[1730653273013,0.00640066,68239.0,68238.0,1.25419231]
[1730653273236,0.00640054,68239.0,68238.0,1.25419231]
[1730653274156,0.00640054,68239.0,68238.0,1.33469231]
[1730653275854,0.001818,68239.0,68238.0,1.33469231]
[1730653276231,0.0064005,68239.0,68238.0,1.33469231]
[1730653278523,0.0064005,68239.0,68238.0,1.38169231]
[1730653278970,0.001818,68239.0,68238.0,1.38169231]
[1730653281248,0.001818,68239.0,68238.0,1.32582077]
[1730653281483,0.0064007,68239.0,68238.0,1.24332077]
[1730653281702,0.0064007,68239.0,68238.0,1.24532077]
[1730653282883,0.001818,68239.0,68238.0,1.24532077]
[1730653283124,0.001818,68239.0,68238.0,1.24332077]
[1730653283582,0.001818,68239.0,68238.0,1.24532077]
[1730653284703,0.001818,68239.0,68238.0,1.32652077]
[1730653285160,0.000818,68253.0,68243.0,0.269885]
[1730653285406,0.00733141,68252.0,68243.0,1.11368204]
[1730653285619,0.000818,68253.0,68243.0,1.11368204]
[1730653285879,0.0073314,68252.0,68243.0,1.24188204]
[1730653286103,0.000818,68253.0,68243.0,1.24188204]
[1730653286324,0.000818,68253.0,68243.0,0.54188204]
[1730653287460,0.000818,68253.0,68243.0,0.80145143]
[1730653287891,0.000818,68253.0,68243.0,0.79145143]
[1730653288104,0.000818,68253.0,68243.0,0.80245143]
[1730653288312,0.000818,68253.0,68243.0,0.80445143]
[1730653288760,0.000818,68253.0,68243.0,0.81545143]
[1730653289421,0.000818,68253.0,68243.0,1.42791804]
[1730653289887,0.000818,68253.0,68243.0,1.43492603]
[1730653290356,0.000818,68253.0,68243.0,1.43475173]
[1730653290806,0.000818,68253.0,68243.0,1.44256047]
[1730653291053,0.000818,68253.0,68243.0,1.55230944]
[1730653291757,0.000818,68253.0,68252.0,0.38349373]
[1730653291989,0.000818,68253.0,68252.0,1.10866204]
[1730653292507,0.000818,68253.0,68252.0,1.19086204]
[1730653292732,0.000818,68253.0,68252.0,1.43984621]
[1730653292980,0.000818,68253.0,68252.0,1.3520449]
[1730653293634,0.000818,68253.0,68252.0,1.43981751]
[1730653293881,0.000818,68253.0,68252.0,1.44381751]
[1730653294351,0.000818,68253.0,68252.0,1.43981751]
[1730653294876,0.000818,68253.0,68252.0,1.45065926]
[1730653295137,0.000818,68253.0,68252.0,1.36587877]
[1730653295343,0.000818,68253.0,68252.0,1.36287877]
[1730653295558,0.000818,68253.0,68252.0,1.45963415]
[1730653296017,0.100818,68253.0,68252.0,1.37894221]
[1730653296496,0.100818,68253.0,68252.0,1.46667801]
[1730653296737,0.001,68259.0,68256.0,0.39048573]
[1730653296983,0.001,68259.0,68256.0,1.27814927]
[1730653297239,0.001,68259.0,68256.0,1.27813738]
[1730653298204,0.001,68259.0,68256.0,1.24828277]
[1730653298428,0.001,68259.0,68256.0,1.29212244]
[1730653298699,0.001,68259.0,68256.0,1.26228277]
[1730653299188,0.00732974,68282.0,68265.0,0.01935]
[1730653299189,0.004581,68273.0,68265.0,0.01935]
[1730653299436,0.22003975,68274.0,68265.0,1.23719177]
[1730653299678,0.0492,68282.0,68265.0,1.23719177]
[1730653299679,0.0492,68282.0,68265.0,1.23426277]
[1730653300570,0.00458062,68281.0,68265.0,1.24226277]
[1730653300791,0.0492,68282.0,68265.0,1.24226277]
[1730653301008,0.00458059,68281.0,68265.0,1.24226277]
[1730653301451,0.0492,68282.0,68265.0,1.24226277]
[1730653301452,0.00458057,68281.0,68265.0,1.24926277]
[1730653301671,0.0492,68282.0,68265.0,1.24926277]
[1730653305696,0.0492,68282.0,68265.0,1.25634413]
[1730653306768,0.0492,68282.0,68265.0,1.33354413]
[1730653306942,0.0492,68282.0,68265.0,1.32554413]
[1730653307113,0.0492,68282.0,68265.0,1.32654413]
[1730653307682,0.0492,68282.0,68265.0,1.32454413]
[1730653307867,0.10166,68266.0,68265.0,1.32454413]
[1730653308071,0.10166,68266.0,68265.0,1.33154413]
[1730653309539,0.10166,68266.0,68265.0,1.39016113]
[1730653311773,0.10166,68266.0,68265.0,1.43586113]
[1730653311991,0.00166,68288.0,68276.0,0.38844273]
[1730653312217,0.00166,68288.0,68276.0,0.53423977]
[1730653312445,0.00166,68288.0,68276.0,0.41361104]
[1730653312906,0.00166,68288.0,68276.0,1.11361104]
[1730653313595,0.0468,68292.0,68291.0,0.00435]
[1730653313835,0.34429975,68297.0,68296.0,0.155771]
[1730653314090,0.12426,68297.0,68296.0,0.155771]
[1730653314535,0.12883973,68297.0,68296.0,0.155771]
[1730653315697,0.12883973,68297.0,68296.0,0.156771]
[1730653316366,0.0530397,68297.0,68296.0,0.156771]
[1730653316610,0.0530397,68297.0,68296.0,0.157771]
[1730653316611,0.04846,68297.0,68296.0,0.157771]
[1730653317956,0.00166,68297.0,68296.0,0.857771]
[1730653318172,0.00166,68297.0,68296.0,0.859771]
[1730653318856,0.00166,68297.0,68296.0,0.857771]
[1730653319308,0.00166,68297.0,68296.0,0.859771]
[1730653319781,0.00166,68297.0,68296.0,0.858771]
[1730653320220,0.00166,68297.0,68296.0,0.158771]
[1730653320950,0.00166,68297.0,68296.0,0.157771]
[1730653322318,0.13243935,68297.0,68296.0,0.155771]
[1730653322769,0.13143935,68297.0,68296.0,0.155771]
[1730653323214,0.13243935,68297.0,68296.0,0.155771]
[1730653323933,0.13243935,68297.0,68296.0,0.00935]
[1730653324209,0.13243935,68297.0,68288.0,0.005]
[1730653324210,0.1252,68295.0,68288.0,0.005]
[1730653324419,0.271628,68293.0,68287.0,0.005]
[1730653324644,0.271628,68293.0,68285.0,0.51292575]
[1730653324645,0.1252,68286.0,68285.0,0.22003975]
[1730653324856,0.271642,68286.0,68285.0,0.22003975]
[1730653325084,0.271642,68286.0,68281.0,0.00435]
[1730653325333,0.01190901,68285.0,68281.0,0.00435]
[1730653325572,0.1252,68286.0,68281.0,0.00435]
[1730653325573,0.01190901,68284.0,68281.0,0.00435]
[1730653325797,0.01190901,68284.0,68281.0,0.150803]
[1730653326029,0.01190901,68283.0,68281.0,0.00435]
[1730653326271,0.01190901,68283.0,68279.0,0.00435]
[1730653326272,0.00732862,68282.0,68279.0,0.00435]
[1730653326493,0.01190901,68281.0,68280.0,0.22003975]
[1730653326721,0.01190901,68281.0,68280.0,0.22938975]
[1730653326941,0.00458039,68281.0,68280.0,0.155805]
[1730653327185,0.00458039,68281.0,68280.0,0.15534521]
[1730653327420,0.00458039,68281.0,68280.0,0.38223514]
[1730653327650,0.0786,68293.0,68289.0,0.439308]
[1730653327894,0.0786,68293.0,68289.0,0.00435]
[1730653328150,0.0786,68293.0,68291.0,0.14643]
[1730653328151,0.01190895,68292.0,68291.0,0.14643]
[1730653328809,0.01190895,68292.0,68291.0,0.15097021]
[1730653329025,0.01190895,68292.0,68291.0,0.15532021]
[1730653329257,0.01190895,68292.0,68287.0,0.29288]
[1730653329258,0.01190895,68292.0,68289.0,0.001]
[1730653329482,0.01190895,68291.0,68289.0,0.001]
[1730653329704,0.0856,68293.0,68289.0,0.001]
[1730653329705,0.01190895,68290.0,68289.0,0.001]
[1730653330367,0.15834395,68290.0,68286.0,0.00454021]
[1730653330584,0.01190895,68289.0,68287.0,0.00454021]
[1730653330804,0.01190895,68288.0,68287.0,0.00889021]
[1730653331061,0.01190895,68288.0,68287.0,0.00454021]
[1730653331279,0.01190895,68288.0,68286.0,0.00454021]
[1730653331499,0.439293,68292.0,68287.0,0.00454021]
[1730653331717,0.15834104,68291.0,68287.0,0.00435]
[1730653331972,0.002,68289.0,68285.0,0.00454021]
[1730653332198,0.01190904,68290.0,68287.0,0.00889021]
[1730653332199,0.01190904,68288.0,68287.0,0.00889021]
[1730653332425,0.01190904,68288.0,68284.0,0.22457996]
[1730653332644,0.01190904,68287.0,68285.0,0.00454021]
[1730653332859,0.01190904,68286.0,68285.0,0.00444021]
[1730653333071,0.0045804,68286.0,68285.0,0.00444021]
[1730653333339,0.0045804,68286.0,68285.0,0.00879021]
[1730653333568,0.01190904,68286.0,68285.0,0.00879021]
[1730653333825,0.0045804,68286.0,68285.0,0.00544021]
[1730653334065,0.01190904,68286.0,68285.0,0.00544021]
[1730653334317,0.01190904,68286.0,68285.0,0.001]
[1730653334550,0.15835104,68286.0,68285.0,0.001]
[1730653334796,0.30414808,68286.0,68285.0,0.001]
[1730653335059,0.29223904,68286.0,68285.0,0.001]
[1730653335279,0.15770722,68286.0,68285.0,0.001]
[1730653335494,0.15770722,68286.0,68279.0,0.30170321]
[1730653335495,0.15770712,68286.0,68279.0,0.30170321]
[1730653335718,0.01191008,68285.0,68281.0,0.146452]
[1730653335942,0.01191008,68284.0,68281.0,0.146452]
[1730653336159,0.01191008,68283.0,68281.0,0.146452]
[1730653336379,0.0045808,68282.0,68280.0,0.22003975]
[1730653336596,0.14579704,68286.0,68280.0,0.36649375]
[1730653336597,0.0045808,68281.0,68280.0,0.36649375]
[1730653336816,0.0045808,68281.0,68279.0,0.00879021]
[1730653337050,0.0045808,68280.0,68279.0,0.15524721]
[1730653337265,0.00458069,68280.0,68279.0,0.15524721]
[1730653338165,0.00458069,68280.0,68279.0,0.15724721]
[1730653338394,0.00458069,68280.0,68279.0,0.15524721]
[1730653338626,0.146446,68285.0,68281.0,0.001]
[1730653338872,0.01190981,68284.0,68281.0,0.001]
[1730653339096,0.0045807,68283.0,68281.0,0.001]
[1730653339317,0.0045807,68282.0,68279.0,0.15724721]
[1730653339530,0.14579704,68286.0,68279.0,0.15724721]
[1730653339531,0.0045807,68281.0,68279.0,0.005]
[1730653339808,0.0045807,68280.0,68279.0,0.005]
[1730653340031,0.0045807,68280.0,68278.0,0.00435]
[1730653340249,0.0045807,68279.0,68278.0,0.00435]
[1730653341585,0.0045807,68279.0,68278.0,0.00635]
[1730653341807,0.0045807,68279.0,68278.0,0.15081]
[1730653342474,0.0045807,68279.0,68278.0,0.00435]
[1730653342702,0.0055807,68279.0,68278.0,0.00435]
[1730653343358,0.0055807,68279.0,68278.0,0.00635]
[1730653343574,0.0055807,68279.0,68278.0,0.00435]
[1730653344248,0.0845807,68279.0,68277.0,0.00444021]
[1730653344460,0.0045807,68278.0,68276.0,0.00444021]
[1730653344692,0.08,68279.0,68275.0,0.00435]
[1730653344693,0.0045807,68277.0,68275.0,0.00879021]
[1730653344915,0.0045807,68277.0,68273.0,0.22003975]
[1730653344916,0.08,68279.0,68276.0,0.00444021]
[1730653345140,0.29750087,68278.0,68273.0,0.00444021]
[1730653345356,0.29750087,68278.0,68274.0,0.22003975]
[1730653345357,0.00458087,68277.0,68274.0,0.22003975]
[1730653345571,0.00458087,68276.0,68274.0,0.22438975]
[1730653345791,0.00458087,68275.0,68273.0,0.00444021]
[1730653346256,0.00458087,68274.0,68273.0,0.00444021]
[1730653346504,0.00458087,68274.0,68273.0,0.00844021]
[1730653347594,0.00458087,68274.0,68273.0,0.00444021]
[1730653347810,0.00458087,68274.0,68273.0,0.00744021]
[1730653348025,0.00458087,68274.0,68273.0,0.00844021]
[1730653348457,0.00658087,68274.0,68273.0,0.00444021]
[1730653348897,0.00758087,68274.0,68273.0,0.00444021]
[1730653349123,0.00758087,68274.0,68271.0,0.00444021]
[1730653349346,0.146475,68271.0,68268.0,0.00435]
[1730653349565,0.292946,68272.0,68268.0,0.00435]
[1730653349566,0.146474,68272.0,68268.0,0.00435]
[1730653349812,0.00458145,68270.0,68268.0,0.00435]
[1730653350037,0.00458145,68269.0,68268.0,0.00435]
[1730653350925,0.06667716,68269.0,68267.0,0.00435]
[1730653351154,0.06667716,68269.0,68263.0,0.00444021]
[1730653351155,0.50153671,68269.0,68268.0,0.003]
[1730653351378,0.146484,68267.0,68265.0,0.00435]
[1730653351619,0.35963925,68269.0,68265.0,0.00435]
[1730653351620,0.00458154,68266.0,68265.0,0.00435]
[1730653352269,0.00458154,68266.0,68265.0,0.150837]
[1730653352919,0.00458154,68266.0,68265.0,0.151837]
[1730653353139,0.15312755,68274.0,68267.0,0.00435]
[1730653353359,0.15312755,68274.0,68268.0,0.292963]
[1730653353360,0.003,68269.0,68268.0,0.292963]
[1730653353593,0.003,68269.0,68268.0,0.439444]
[1730653353812,0.00458147,68269.0,68268.0,0.292963]
[1730653354059,0.00458147,68269.0,68268.0,0.439444]
[1730653354513,0.00458147,68269.0,68268.0,0.44823421]
[1730653354731,0.003,68269.0,68268.0,0.70924361]
[1730653354960,0.003,68269.0,68268.0,0.68424361]
[1730653355182,0.004,68269.0,68268.0,0.86376282]
[1730653355401,0.004,68269.0,68268.0,0.85555046]
[1730653355851,0.003,68269.0,68268.0,1.55555046]
[1730653356067,0.003,68269.0,68268.0,1.56955046]
[1730653356295,0.003,68269.0,68268.0,1.56950297]
[1730653356514,0.003,68269.0,68268.0,1.56950448]
[1730653356743,0.00732932,68295.0,68294.0,0.00644021]
[1730653356976,0.22003975,68296.0,68295.0,0.15086321]
[1730653357194,0.001,68299.0,68296.0,0.150771]
[1730653357620,0.001,68299.0,68296.0,0.152771]
[1730653357847,0.00623966,68297.0,68296.0,0.152771]
[1730653358511,0.00166,68297.0,68296.0,0.152771]
[1730653358776,0.00623966,68297.0,68296.0,0.152771]
[1730653358994,0.00166,68297.0,68296.0,0.152771]
[1730653359209,0.00623956,68297.0,68296.0,0.152771]
[1730653359436,0.00166,68297.0,68296.0,0.152771]
[1730653360364,0.00366,68297.0,68296.0,0.150771]
[1730653361956,0.00366,68297.0,68296.0,0.152771]
[1730653363503,0.00366,68297.0,68296.0,0.37281075]
[1730653363748,0.00366,68297.0,68296.0,0.152771]
[1730653363977,0.00366,68297.0,68296.0,0.89155962]
[1730653364197,0.00366,68297.0,68296.0,0.66859196]
[1730653365140,0.00166,68297.0,68296.0,0.65723698]
[1730653365571,0.00266,68297.0,68296.0,0.68123698]
[1730653366224,0.00266,68297.0,68296.0,1.38123698]
[1730653367321,0.00166,68297.0,68296.0,1.36923698]
[1730653367532,0.00166,68297.0,68296.0,1.35723698]
[1730653367753,0.001479,68326.0,68319.0,0.00444021]
[1730653367754,0.20662249,68320.0,68319.0,0.00444021]
[1730653368179,0.000874,68322.0,68319.0,0.00444021]
[1730653368398,0.000874,68322.0,68319.0,0.15081021]
[1730653368613,0.000874,68322.0,68320.0,0.146369]
[1730653368827,0.000874,68322.0,68319.0,0.00444021]
[1730653369045,0.000829,68322.0,68319.0,0.00444021]
[1730653369278,0.000829,68322.0,68319.0,0.15081121]
[1730653369955,0.000829,68322.0,68319.0,0.00444021]
[1730653370454,0.000829,68322.0,68319.0,0.15081121]
[1730653370664,0.000829,68322.0,68320.0,0.146368]
[1730653371289,0.000829,68322.0,68321.0,0.146367]
[1730653371564,0.000829,68322.0,68319.0,0.00444021]
[1730653371787,0.000829,68322.0,68320.0,0.29274]
[1730653372005,0.000829,68322.0,68321.0,0.146367]
[1730653372397,0.143661,68328.0,68321.0,0.146367]
[1730653372647,0.14579704,68327.0,68320.0,0.29274]
[1730653372883,0.00055979,68332.0,68320.0,0.29274]
[1730653372884,0.292663,68338.0,68328.0,0.00444021]
[1730653373139,0.43847704,68334.0,68328.0,0.00444021]
[1730653373355,0.14579704,68334.0,68328.0,0.00444021]
[1730653373591,0.14579704,68334.0,68330.0,0.146348]
[1730653374047,0.14579704,68334.0,68328.0,0.15179021]
[1730653374270,0.14579704,68334.0,68329.0,0.14635]
[1730653375106,0.146344,68332.0,68328.0,0.00544021]
[1730653375332,0.146342,68333.0,68328.0,0.00544021]
[1730653375540,0.43847804,68334.0,68328.0,0.00544021]
[1730653375751,0.146343,68333.0,68328.0,0.00544021]
[1730653375960,0.29213704,68334.0,68328.0,0.15179221]
[1730653376172,0.29213704,68334.0,68330.0,0.146347]
[1730653376173,0.14579704,68334.0,68330.0,0.146347]
[1730653376397,0.14579704,68334.0,68328.0,0.00544021]
[1730653376624,0.002,68334.0,68332.0,0.146343]
[1730653376840,0.007,68334.0,68331.0,0.002]
[1730653377028,0.007,68334.0,68333.0,0.146342]
[1730653377348,0.007,68334.0,68331.0,0.00444021]
[1730653377349,0.005,68334.0,68331.0,0.00444021]
[1730653377561,0.012,68334.0,68331.0,0.15078521]
[1730653378002,0.01,68334.0,68331.0,0.15078521]
[1730653378439,0.002,68334.0,68333.0,0.001]
[1730653379757,0.000829,68335.0,68331.0,0.15078521]
[1730653379967,0.003,68334.0,68331.0,0.15178521]
[1730653380179,0.000818,68333.0,68331.0,0.15178521]
[1730653380633,0.000818,68333.0,68331.0,0.15078521]
[1730653381079,0.000818,68333.0,68332.0,0.23088421]
[1730653381530,0.000818,68333.0,68332.0,0.43730792]
[1730653381753,0.001818,68333.0,68332.0,0.43438125]
[1730653381976,0.001818,68333.0,68332.0,0.43638125]
[1730653382191,0.004818,68333.0,68332.0,0.43638125]
[1730653382661,0.004818,68333.0,68332.0,1.13638125]
[1730653382870,0.004818,68333.0,68332.0,1.1435306]
[1730653383131,0.003818,68333.0,68332.0,1.1435306]
[1730653383364,0.004818,68333.0,68332.0,1.1435306]
[1730653383808,0.003818,68333.0,68332.0,1.1435306]
[1730653384254,0.003818,68333.0,68332.0,0.94388421]
[1730653384624,0.003818,68333.0,68332.0,0.94588421]
[1730653384859,0.003818,68333.0,68332.0,0.86378421]
[1730653385303,0.003818,68333.0,68332.0,0.71744021]
[1730653385520,0.00839489,68333.0,68332.0,0.86378421]
[1730653386224,0.003818,68333.0,68332.0,0.16378421]
[1730653386452,0.00839512,68333.0,68332.0,0.16378421]
[1730653386681,0.00539512,68333.0,68332.0,0.16378421]
[1730653387124,0.000818,68333.0,68332.0,0.16278421]
[1730653387400,0.000818,68333.0,68332.0,0.15578421]
[1730653387645,0.002818,68333.0,68332.0,0.15578421]
[1730653387870,0.146313,68347.0,68338.0,0.292662]
[1730653387871,0.00732322,68344.0,68338.0,0.292662]
[1730653388104,0.00457701,68343.0,68341.0,0.146323]
[1730653388335,0.00457701,68342.0,68341.0,0.146323]
[1730653389485,0.00457701,68342.0,68341.0,0.147323]
[1730653389743,0.373619,68349.0,68341.0,0.147323]
[1730653389744,0.146315,68346.0,68341.0,0.146323]
[1730653389971,0.29265,68341.0,68337.0,0.00444021]
[1730653390199,0.292637,68344.0,68337.0,0.00444021]
[1730653390449,0.002,68342.0,68337.0,0.00444021]
[1730653390670,0.14633,68339.0,68337.0,0.00444021]
[1730653390935,0.00457703,68338.0,68337.0,0.00444021]
[1730653391179,0.00457703,68338.0,68337.0,0.001]
[1730653391180,0.15090803,68338.0,68337.0,0.001]
[1730653391622,0.00457703,68338.0,68336.0,0.00444021]
[1730653391853,0.00457703,68338.0,68328.0,0.22003975]
[1730653391854,0.146338,68335.0,68333.0,0.001636]
[1730653392097,0.00457703,68334.0,68333.0,0.001636]
[1730653392840,0.00457703,68334.0,68333.0,0.147978]
[1730653393066,0.00457703,68334.0,68333.0,0.15541821]
[1730653393583,0.00457703,68334.0,68333.0,0.15241821]
[1730653393842,0.15091737,68334.0,68333.0,0.001636]
[1730653394094,0.00457737,68334.0,68333.0,0.003636]
[1730653394312,0.00457737,68334.0,68333.0,0.001636]
[1730653395553,0.15091737,68334.0,68333.0,0.001636]
[1730653395796,0.00457737,68334.0,68333.0,0.001636]
[1730653396037,0.00657737,68334.0,68333.0,0.001636]
[1730653396263,0.00457737,68334.0,68333.0,0.001636]
[1730653396477,0.15091737,68334.0,68333.0,0.001636]
[1730653396708,0.15291737,68334.0,68333.0,0.001636]
[1730653397402,0.15091737,68334.0,68333.0,0.002636]
[1730653397820,0.15824129,68334.0,68333.0,0.002636]
[1730653398261,0.37839616,68334.0,68333.0,0.002636]
[1730653398718,0.30403833,68334.0,68333.0,0.002636]
[1730653398927,0.30503833,68334.0,68333.0,0.002636]
[1730653399139,0.30403833,68334.0,68333.0,0.002636]
[1730653399570,0.30603833,68334.0,68333.0,0.001636]
[1730653399828,0.30403833,68334.0,68333.0,0.001636]
[1730653400274,0.30603833,68334.0,68333.0,0.002636]
[1730653400704,0.30603833,68334.0,68333.0,0.003636]
[1730653400915,0.30146096,68334.0,68333.0,0.003636]
[1730653401131,0.30603981,68334.0,68333.0,0.003636]
[1730653403908,0.01390277,68334.0,68333.0,0.003636]
[1730653404368,0.01390277,68334.0,68333.0,0.149978]
[1730653405367,0.01390277,68334.0,68333.0,0.003636]
[1730653408162,0.01390277,68334.0,68333.0,0.149978]
[1730653409082,0.01190277,68334.0,68333.0,0.148978]
[1730653409531,0.01390277,68334.0,68333.0,0.148978]